Workbook

Sheet Tide predict
A1: Tide prediction sheet | D1: limited to sites for which harmonic constants are known
B2: w0 | C2: w1 | D2: w2 | E2: w3
B3: 15 | C3: 14.49205449 | D3: 0.5490141536 | E3: 0.0410686388
C5: amplitude (m) | D5: w degrees/hr | E5: phase degrees
B6: M2 | C6: 1.568 | D6: =2*C$3 -> 28.98410897 | E6: 188.11
B7: S2 | C7: 0.533 | D7: =2*B$3 -> 30 | E7: 234.18
B8: K1 | C8: 0.145 | D8: =2*(C$3+D$3) -> 30.08213728 | E8: 300.95
B9: O1 | C9: 0.158 | D9: =2*(C$3-D$3) -> 27.88608066 | E9: 132.54
B11: Z0 | C11: 2.92
B13: step | C13: 0.98 | D13: hours
A15: t | B15: height
A16: 0 | B16: =C$6*COS(RADIANS(D$6*A16-E$6))+C$7*COS(RADIANS(D$7*A16-E$7))+C$8*COS(RADIANS(D$8*A16-E$8))+C$9*COS(RADIANS(D$9*A16-E$9)) -> -1.896504356
A17: =A16+C$13 -> 0.98 | B17: -1.992324522
A18: 1.96 | B18: -1.601107495
A19: 2.94 | B19: -0.813638367
A20: 3.92 | B20: 0.1811407557
A21: 4.9 | B21: 1.141492253
A22: 5.88 | B22: 1.831685534
A23: 6.86 | B23: 2.079922492
A24: 7.84 | B24: 1.821136401
A25: 8.82 | B25: 1.113992706
A26: 9.8 | B26: 0.1276612994
A27: 10.78 | B27: -0.8986768579
A28: 11.76 | B28: -1.713890872
A29: 12.74 | B29: -2.116419644
A30: 13.72 | B30: -2.004161962
A31: 14.7 | B31: -1.400374592
A32: 15.68 | B32: -0.4490085569
A33: 16.66 | B33: 0.6196266464
A34: 17.64 | B34: 1.544677569
A35: 18.62 | B35: 2.098498968
A36: 19.6 | B36: 2.1427435
A37: 20.58 | B37: 1.66295194
A38: 21.56 | B38: 0.7729876728
A39: 22.54 | B39: -0.3119916847
A40: 23.52 | B40: -1.327608603
A41: 24.5 | B41: -2.024768425
A42: 25.48 | B42: -2.230833221
A43: 26.46 | B43: -1.892423667
A44: 27.44 | B44: -1.089224271
A45: 28.42 | B45: -0.01522624532
A46: 29.4 | B46: 1.068178736
A47: 30.38 | B47: 1.895899437
A48: 31.36 | B48: 2.264096511
A49: 32.34 | B49: 2.080448802
A50: 33.32 | B50: 1.387322219
A51: 34.3 | B51: 0.3520215005
A52: 35.28 | B52: -0.7736391043
A53: 36.26 | B53: -1.71466545
A54: 37.24 | B54: -2.240156698
A55: 38.22 | B55: -2.220041883
A56: 39.2 | B56: -1.657318945
A57: 40.18 | B57: -0.6877947616
A58: 41.16 | B58: 0.4527272433
A59: 42.14 | B59: 1.485875239
A60: 43.12 | B60: 2.15874791
A61: 44.1 | B61: 2.305910905
A62: 45.08 | B62: 1.890131036
A63: 46.06 | B63: 1.011803655
A64: 47.04 | B64: -0.1153156189
A65: 48.02 | B65: -1.216202169
A66: 49 | B66: -2.02176511
A67: 49.98 | B67: -2.334717214
A68: 50.96 | B68: -2.077964499
A69: 51.94 | B69: -1.313628943
A70: 52.92 | B70: -0.2280028925
A71: 53.9 | B71: 0.9139172507
A72: 54.88 | B72: 1.833206711
A73: 55.86 | B73: 2.305241324
A74: 56.84 | B74: 2.214665857
A75: 57.82 | B75: 1.583630074
A76: 58.8 | B76: 0.5663699208
A77: 59.78 | B77: -0.5885399384
A78: 60.76 | B78: -1.599011835
A79: 61.74 | B79: -2.218444391
A80: 62.72 | B80: =C$6*COS(RADIANS(D$6*A80-E$6))+C$7*COS(RADIANS(D$7*A80-E$7))+C$8*COS(RADIANS(D$8*A80-E$8))+C$9*COS(RADIANS(D$9*A80-E$9)) -> -2.295993772
A81: =A80+C$13 -> 63.7 | B81: -1.813364339
A82: 64.68 | B82: -0.8891315577
A83: 65.66 | B83: 0.2504258547
A84: 66.64 | B84: 1.326800892
A85: 67.62 | B85: 2.077421469
A86: 68.6 | B86: 2.319795694
A87: 69.58 | B87: 1.995946013
A88: 70.56 | B88: 1.186296979
A89: 71.54 | B89: 0.0896853959
A90: 72.52 | B90: -1.025534144
A91: 73.5 | B91: -1.887249457
A92: 74.48 | B92: -2.286079978
A93: 75.46 | B93: -2.126325644
A94: 76.44 | B94: -1.448960116
A95: 77.42 | B95: -0.421136763
A96: 78.4 | B96: 0.7051079733
A97: 79.38 | B97: 1.654739109
A98: 80.36 | B98: 2.196980417
A99: 81.34 | B99: 2.201474697
A100: 82.32 | B100: 1.669661233
A101: 83.3 | B101: 0.7338083788
A102: 84.28 | B102: -0.3759122695
A103: 85.26 | B103: -1.38810637
A104: 86.24 | B104: -2.056616833
A105: 87.22 | B105: -2.220466822
A106: 88.2 | B106: -1.84266925
A107: 89.18 | B107: -1.018535099
A108: 90.16 | B108: 0.04837441039
A109: 91.14 | B109: 1.096583065
A110: 92.12 | B110: 1.870861795
A111: 93.1 | B111: 2.18445352
A112: 94.08 | B112: 1.964170928
A113: 95.06 | B113: 1.267464525
A114: 96.04 | B114: 0.2674842915
A115: 97.02 | B115: -0.7899903476
A116: 98 | B116: -1.647029102
A117: 98.98 | B117: -2.096538642
A118: 99.96 | B118: -2.032359079
A119: 100.94 | B119: -1.474337284
A120: 101.92 | B120: -0.5624552229
A121: 102.9 | B121: 0.4783000643
A122: 103.88 | B122: 1.393504212
A123: 104.86 | B123: 1.961562328
A124: 105.84 | B124: 2.047418544
A125: 106.82 | B125: 1.63467673
A126: 107.8 | B126: 0.828490725
A127: 108.78 | B127: -0.1712092102
A128: 109.76 | B128: -1.119339775
A129: 110.74 | B129: -1.785810331
A130: 111.72 | B130: -2.011415069
A131: 112.7 | B131: -1.745881309
A132: 113.68 | B132: -1.058976911
A133: 114.66 | B133: -0.1222490571
A134: 115.64 | B134: 0.8338408438
A135: 116.62 | B135: 1.576668834
A136: 117.6 | B136: 1.928098233
A137: 118.58 | B137: 1.807219296
A138: 119.56 | B138: 1.248919437
A139: 120.54 | B139: 0.3940376169
A140: 121.52 | B140: -0.5461639674
A141: 122.5 | B141: -1.342247487
A142: 123.48 | B142: -1.80263453
A143: 124.46 | B143: -1.819731814
A144: 125.44 | B144: =C$6*COS(RADIANS(D$6*A144-E$6))+C$7*COS(RADIANS(D$7*A144-E$7))+C$8*COS(RADIANS(D$8*A144-E$8))+C$9*COS(RADIANS(D$9*A144-E$9)) -> -1.395036683
A145: =A144+C$13 -> 126.42 | B145: -0.637375122
A146: 127.4 | B146: 0.2649524085
A147: 128.38 | B147: 1.090994383
A148: 129.36 | B148: 1.641290485
A149: 130.34 | B149: 1.786055723
A150: 131.32 | B150: 1.495761092
A151: 132.3 | B151: 0.84691308
A152: 133.28 | B152: 0.001973786777
A153: 134.26 | B153: -0.8313259883
A154: 135.24 | B154: -1.451087889
A155: 136.22 | B155: -1.710182566
A156: 137.2 | B156: -1.551155375
A157: 138.18 | B157: -1.018826084
A158: 139.16 | B158: -0.2478587778
A159: 140.14 | B159: 0.5712927616
A160: 141.12 | B160: 1.239453812
A161: 142.1 | B161: 1.59717309
A162: 143.08 | B162: 1.56275557
A163: 144.06 | B163: 1.150817055
A164: 145.04 | B164: 0.4671743837
A165: 146.02 | B165: -0.3182974841
A166: 147 | B166: -1.013886982
A167: 147.98 | B167: -1.452848575
A168: 148.96 | B168: -1.533357151
A169: 149.94 | B169: -1.242045023
A170: 150.92 | B170: -0.6557032751
A171: 151.9 | B171: 0.07887858919
A172: 152.88 | B172: 0.7816595226
A173: 153.86 | B173: 1.283480401
A174: 154.84 | B174: 1.466763184
A175: 155.82 | B175: 1.29298784
A176: 156.8 | B176: 0.8105449783
A177: 157.78 | B177: 0.1414346816
A178: 158.76 | B178: -0.5495691645
A179: 159.74 | B179: -1.095497783
A180: 160.72 | B180: -1.367514813
A181: 161.7 | B181: -1.305255923
A182: 162.68 | B182: -0.9300530671
A183: 163.66 | B183: -0.3381941596
A184: 164.64 | B184: 0.3237522239
A185: 165.62 | B185: 0.8952307408
A186: 166.6 | B186: 1.240624045
A187: 167.58 | B187: 1.281375438
A188: 168.56 | B188: 1.013716316
A189: 169.54 | B189: 0.5080360385
A190: 170.52 | B190: -0.1095622582
A191: 171.5 | B191: -0.688701304
A192: 172.48 | B192: -1.091326965
A193: 173.46 | B193: -1.224560083
A194: 174.44 | B194: -1.061999783
A195: 175.42 | B195: -0.6486248281
A196: 176.4 | B196: -0.08848617503
A197: 177.38 | B197: 0.4814710966
A198: 178.36 | B198: 0.9248723221
A199: 179.34 | B199: 1.138489885
A200: 180.32 | B200: 1.07616354
A201: 181.3 | B201: 0.7585511319
A202: 182.28 | B202: 0.2667143975
A203: 183.26 | B203: -0.2785481514
A204: 184.24 | B204: -0.7463562282
... 487 more rows

Sheet Sea level frequency
A1: Sea level frequency generator | F1: limited to sites for which harmonic constants are known
D3: w0 | E3: w1 | F3: w2 | G3: w3
D4: 15 | E4: 14.49205449 | F4: 0.5490141536 | G4: 0.0410686388 | I4: 1. set up tide data in green panel | P4: Data store
I5: 2. set sheet calculation mode to 'manual' for maximum speed
E6: amplitude | F6: frequency | G6: phase | I6: 3. launch macro 'sealevelfrequency'
E7: metres | F7: degs/hr | G7: degrees | I7: 4. use bin width 0.2 for most locations, 0.5 for high tide locations, for a wide enough distribution
D8: Cromer: | I8: 5. try interval = 0.2 ie sea level at 12 minute intervals | P8: Aberdeen:
D9: M2 | E9: 1.568 | F9: 28.98410897 | G9: 188.11 | I9: 6. test first with 100 or 1000 points | P9: M2 | Q9: 1.301 | R9: 28.98410897 | S9: 24.57
D10: S2 | E10: 0.533 | F10: 30 | G10: 234.18 | I10: 7. programme calculates tideheight (as sheet 1) for successive times and allots to frequency 'bins' | P10: S2 | Q10: 0.44 | R10: 30 | S10: 62.88
D11: K1 | E11: 0.145 | F11: 30.08213728 | G11: 300.95 | I11: 8. then run with 45000 points for just over a year of data | P11: K1 | Q11: 0.113 | R11: 30.08213728 | S11: 204.56
D12: O1 | E12: 0.158 | F12: 27.88608066 | G12: 132.54 | I12: 9. when finished, copy frequency data in pink columns to sheet 'Tidal smear' | P12: O1 | Q12: 0.127 | R12: 27.88608066 | S12: 51.1
I13: 10. also copy site name to sheet 'Tidal smear'
D14: Z0 | E14: 2.92 | F14: HAT | G14: 5.74 | P14: Z0 | Q14: 2.557 | R14: HAT | S14: 4.85
A16: height | D16: bin | E16: midpt | F16: frequency | G16: normalised
A17: 2.400000095 | B17: to | C17: 2.600000143 | D17: 1 | E17: 2.500000037 | F17: 0 | G17: =F17/F$44 -> 0
A18: 2.200000048 | B18: to | C18: 2.400000095 | D18: =D17+1 -> 2 | E18: 2.300000034 | F18: 349 | G18: =F18/F$44 -> 0.007755555556 | P18: Stornoway:
A19: 2 | B19: to | C19: 2.200000048 | D19: 3 | E19: 2.100000031 | F19: 830 | G19: 0.01844444444 | P19: M2 | Q19: 1.39 | R19: 28.98410897 | S19: 197.54
A20: 1.800000072 | B20: to | C20: 2 | D20: 4 | E20: 1.900000028 | F20: 1385 | G20: 0.03077777778 | P20: S2 | Q20: 0.545 | R20: 30 | S20: 231.25
A21: 1.600000024 | B21: to | C21: 1.800000072 | D21: 5 | E21: 1.700000025 | F21: 1845 | G21: 0.041 | P21: K1 | Q21: 0.131 | R21: 30.08213728 | S21: 135.34
A22: 1.399999976 | B22: to | C22: 1.600000024 | D22: 6 | E22: 1.500000022 | F22: 2063 | G22: 0.04584444444 | P22: O1 | Q22: 0.092 | R22: 27.88608066 | S22: 350.12
A23: 1.200000048 | B23: to | C23: 1.399999976 | D23: 7 | E23: 1.300000019 | F23: 2456 | G23: 0.05457777778
A24: 1 | B24: to | C24: 1.200000048 | D24: 8 | E24: 1.100000016 | F24: 2587 | G24: 0.05748888889 | P24: Z0 | Q24: 2.893 | R24: HAT | S24: 5.53
A25: 0.8000000119 | B25: to | C25: 1 | D25: 9 | E25: 0.9000000134 | F25: 2672 | G25: 0.05937777778
A26: 0.6000000238 | B26: to | C26: 0.8000000119 | D26: 10 | E26: 0.7000000104 | F26: 2362 | G26: 0.05248888889 | P26: Cromer:
A27: 0.400000006 | B27: to | C27: 0.6000000238 | D27: 11 | E27: 0.5000000075 | F27: 2074 | G27: 0.04608888889 | P27: M2 | Q27: 1.568 | R27: =2*E$4 -> 28.98410897 | S27: 188.11
A28: 0.200000003 | B28: to | C28: 0.400000006 | D28: 12 | E28: 0.3000000045 | F28: 1978 | G28: 0.04395555556 | P28: S2 | Q28: 0.533 | R28: =2*D$4 -> 30 | S28: 234.18
A29: 0 | B29: to | C29: 0.200000003 | D29: 13 | E29: 0.1000000015 | F29: 1898 | G29: 0.04217777778 | P29: K1 | Q29: 0.145 | R29: =2*(E$4+F$4) -> 30.08213728 | S29: 300.95
A30: -0.200000003 | B30: to | C30: 0 | D30: 14 | E30: -0.1000000015 | F30: 1906 | G30: 0.04235555556 | P30: O1 | Q30: 0.158 | R30: =2*(E$4-F$4) -> 27.88608066 | S30: 132.54
A31: -0.400000006 | B31: to | C31: -0.200000003 | D31: 15 | E31: -0.3000000045 | F31: 1972 | G31: 0.04382222222
A32: -0.6000000238 | B32: to | C32: -0.400000006 | D32: 16 | E32: -0.5000000075 | F32: 2070 | G32: 0.046 | P32: Z0 | Q32: 2.92 | R32: HAT | S32: 5.74
A33: -0.8000000119 | B33: to | C33: -0.6000000238 | D33: 17 | E33: -0.7000000104 | F33: 2371 | G33: 0.05268888889
A34: -1 | B34: to | C34: -0.8000000119 | D34: 18 | E34: -0.9000000134 | F34: 2660 | G34: 0.05911111111
A35: -1.200000048 | B35: to | C35: -1 | D35: 19 | E35: -1.100000016 | F35: 2606 | G35: 0.05791111111 | I35: Interval | K35: 0.2 | P35: Heysham:
A36: -1.399999976 | B36: to | C36: -1.200000048 | D36: 20 | E36: -1.300000019 | F36: 2443 | G36: 0.05428888889 | I36: No of data points | K36: 45000 | P36: M2 | Q36: 3.166 | R36: 28.98410897 | S36: 325.68
A37: -1.600000024 | B37: to | C37: -1.399999976 | D37: 21 | E37: -1.500000022 | F37: 2033 | G37: 0.04517777778 | I37: Weeks | K37: =K36*K35/168 -> 53.57142857 | P37: S2 | Q37: 1.027 | R37: 30 | S37: 8.72
A38: -1.800000072 | B38: to | C38: -1.600000024 | D38: 22 | E38: -1.700000025 | F38: 1876 | G38: 0.04168888889 | P38: K1 | Q38: 0.123 | R38: 30.08213728 | S38: 192.45
A39: -2 | B39: to | C39: -1.800000072 | D39: 23 | E39: -1.900000028 | F39: 1384 | G39: 0.03075555556 | P39: O1 | Q39: 0.114 | R39: 27.88608066 | S39: 42.42
A40: -2.200000048 | B40: to | C40: -2 | D40: 24 | E40: -2.100000031 | F40: 824 | G40: 0.01831111111
A41: -2.400000095 | B41: to | C41: -2.200000048 | D41: 25 | E41: -2.300000034 | F41: 356 | G41: 0.007911111111 | P41: Z0 | Q41: 5.176 | R41: HAT | S41: 10.76
A42: -2.600000143 | B42: to | C42: -2.400000095 | D42: 26 | E42: -2.500000037 | F42: 0 | G42: 0
P43: Avonmouth:
F44: =SUM(F18:F41) -> 45000 | G44: =SUM(G18:G41) -> 1 | P44: M2 | Q44: 4.269 | R44: 28.98410897 | S44: 200.53
P45: S2 | Q45: 1.513 | R45: 30 | S45: 259.91
P46: K1 | Q46: 0.069 | R46: 30.08213728 | S46: 144.06
P47: O1 | Q47: 0.075 | R47: 27.88608066 | S47: 3.35
P49: Z0 | Q49: 6.955 | R49: HAT | S49: 14.65

Sheet Tide smear
A1: TIDAL SMEAR OF BIRD DATA
A3: Data store: sea level frequency distributions - data in this panel does not form part of the calculations | H3: This is the sea level frequency distribution to be smeared | K3: This is the unsmeared flight height distribution | M3: This is the tide-smeared output
A4: bin width: | B4: 0.2 | C4: 0.2 | D4: 0.4 | E4: 0.5 | F4: 0.2 | H4: Cromer: | K4: Bird data
B5: Aberdeen | C5: Cromer | D5: Heysham | E5: Avonmouth | F5: Stornoway | H5: tide height | I5: normalised freq | K5: KITTIWAKE | L5: original flight height distribution | M5: tide-smeared distribution
B6: 0 | C6: 0 | D6: 0 | E6: 0 | F6: 0 | H6: 2.500000037 | I6: 0 | M6: Cromer:
B7: 0 | C7: 0.007755555556 | D7: 0 | E7: 0.01793333333 | F7: 0 | H7: 2.300000034 | I7: 0.007755555556 | K7: height (m)
B8: 0 | C8: 0.01844444444 | D8: 0.017 | E8: 0.03406666667 | F8: 0.004222222222 | H8: 2.100000031 | I8: 0.01844444444 | K8: 0 | L8: 0.08571
B9: 0.0003333333333 | C9: 0.03077777778 | D9: 0.03826666667 | E9: 0.03635555556 | F9: 0.0214 | H9: 1.900000028 | I9: 0.03077777778 | K9: =K8+1 -> 1 | L9: 0.0785
B10: 0.03193333333 | C10: 0.041 | D10: 0.04168888889 | E10: 0.03933333333 | F10: 0.04044444444 | H10: 1.700000025 | I10: 0.041 | K10: 2 | L10: 0.07175
B11: 0.0474 | C11: 0.04584444444 | D11: 0.04642222222 | E11: 0.04333333333 | F11: 0.04353333333 | H11: 1.500000022 | I11: 0.04584444444 | K11: 3 | L11: 0.06526
B12: 0.05313333333 | C12: 0.05457777778 | D12: 0.05328888889 | E12: 0.05051111111 | F12: 0.04864444444 | H12: 1.300000019 | I12: 0.05457777778 | K12: 4 | L12: 0.05987 | M12: =tidesmear(K12,"birddata") -> 0.06039018184
B13: 0.06228888889 | C13: 0.05748888889 | D13: 0.06782222222 | E13: 0.06622222222 | F13: 0.05686666667 | H13: 1.100000016 | I13: 0.05748888889 | K13: 5 | L13: 0.05499 | M13: =tidesmear(K13,"birddata") -> 0.05548209697
B14: 0.08286666667 | C14: 0.05937777778 | D14: 0.05873333333 | E14: 0.05017777778 | F14: 0.06813333333 | H14: 0.9000000134 | I14: 0.05937777778 | K14: 6 | L14: 0.05095 | M14: =tidesmear(K14,"birddata") -> 0.05100522563
B15: 0.065 | C15: 0.05248888889 | D15: 0.0478 | E15: 0.04371111111 | F15: 0.06551111111 | H15: 0.7000000104 | I15: 0.05248888889 | K15: 7 | L15: 0.0468 | M15: =tidesmear(K15,"birddata") -> 0.04686023295
B16: 0.0556 | C16: 0.04608888889 | D16: 0.04475555556 | E16: 0.0408 | F16: 0.054 | H16: 0.5000000075 | I16: 0.04608888889 | K16: 8 | L16: 0.04263 | M16: 0.04299493507
B17: 0.05137777778 | C17: 0.04395555556 | D17: 0.04275555556 | E17: 0.03931111111 | F17: 0.04902222222 | H17: 0.3000000045 | I17: 0.04395555556 | K17: 9 | L17: 0.03907 | M17: 0.03937849775
B18: 0.04993333333 | C18: 0.04217777778 | D18: 0.04115555556 | E18: 0.03855555556 | F18: 0.04806666667 | H18: 0.1000000015 | I18: 0.04217777778 | K18: 10 | L18: 0.0359 | M18: 0.03606048971
B19: 0.05004444444 | C19: 0.04235555556 | D19: 0.04097777778 | E19: 0.03844444444 | F19: 0.04817777778 | H19: -0.1000000015 | I19: 0.04235555556 | K19: 11 | L19: 0.03293 | M19: 0.03302382678
B20: 0.05144444444 | C20: 0.04382222222 | D20: 0.04222222222 | E20: 0.03906666667 | F20: 0.04924444444 | H20: -0.3000000045 | I20: 0.04382222222 | K20: 12 | L20: 0.02997 | M20: 0.03022258729
B21: 0.05533333333 | C21: 0.046 | D21: 0.045 | E21: 0.04073333333 | F21: 0.05402222222 | H21: -0.5000000075 | I21: 0.046 | K21: 13 | L21: 0.02747 | M21: 0.02762779966
B22: 0.06497777778 | C22: 0.05268888889 | D22: 0.04802222222 | E22: 0.04373333333 | F22: 0.0654 | H22: -0.7000000104 | I22: 0.05268888889 | K22: 14 | L22: 0.02505 | M22: 0.02529697679
B23: 0.08333333333 | C23: 0.05911111111 | D23: 0.05888888889 | E23: 0.05006666667 | F23: 0.06806666667 | H23: -0.9000000134 | I23: 0.05911111111 | K23: 15 | L23: 0.02305 | M23: 0.02317125164
B24: 0.06204444444 | C24: 0.05791111111 | D24: 0.06822222222 | E24: 0.06613333333 | F24: 0.05706666667 | H24: -1.100000016 | I24: 0.05791111111 | K24: 16 | L24: 0.02118 | M24: 0.02122067846
B25: 0.05282222222 | C25: 0.05428888889 | D25: 0.05384444444 | E25: 0.05055555556 | F25: 0.04873333333 | H25: -1.300000019 | I25: 0.05428888889 | K25: 17 | L25: 0.01929 | M25: 0.01939834282
B26: 0.0478 | C26: 0.04517777778 | D26: 0.04597777778 | E26: 0.04357777778 | F26: 0.04371111111 | H26: -1.500000022 | I26: 0.04517777778 | K26: 18 | L26: 0.01765 | M26: 0.01759715751
B27: 0.03197777778 | C27: 0.04168888889 | D27: 0.04137777778 | E27: 0.03886666667 | F27: 0.04 | H27: -1.700000025 | I27: 0.04168888889 | K27: 19 | L27: 0.01587 | M27: 0.01584626921
B28: 0.0003555555556 | C28: 0.03075555556 | D28: 0.03866666667 | E28: 0.03631111111 | F28: 0.02144444444 | H28: -1.900000028 | I28: 0.03075555556 | K28: 20 | L28: 0.01398 | M28: 0.01418743376
B29: 0 | C29: 0.01831111111 | D29: 0.01708888889 | E29: 0.03446666667 | F29: 0.004288888889 | H29: -2.100000031 | I29: 0.01831111111 | K29: 21 | L29: 0.01247 | M29: 0.0126395626
B30: 0 | C30: 0.007911111111 | D30: 2.222222222e-05 | E30: 0.01773333333 | F30: 0 | H30: -2.300000034 | I30: 0.007911111111 | K30: 22 | L30: 0.01115 | M30: 0.01127566956
B31: 0 | C31: 0 | D31: 0 | E31: 0 | F31: 0 | H31: -2.500000037 | I31: 0 | K31: 23 | L31: 0.00999 | M31: 0.01008727122
K32: 24 | L32: 0.00895 | M32: 0.009022660553
C33: 1. Copy in sea level frequency data (pink) from Sheet Sea Level Frequency | K33: 25 | L33: 0.00801 | M33: 0.00805549603
C34: 2. Check that Range 'tidefreq' is H6:I31 | K34: 26 | L34: 0.0071 | M34: 0.007183498237
C35: 3. Copy in bird distribution data (eg from Cook et al) to columns K and L | K35: 27 | L35: 0.00631 | M35: 0.006389997434
C36: 4. Check that Range "gannetdata" (or whatever name you choose) is K8 to L158 | K36: 28 | L36: 0.00565 | M36: 0.005674387794
C37: 5. In column M, set up formulae eg =tidesmear(k21,"gannetdata") in row 21 | K37: 29 | L37: 0.00496 | M37: 0.005043612327
C38: 6. Do not use formulae that go beyond the bounds, ie if tidal range is +/- 4m, then start at 4m to 146m | K38: 30 | L38: 0.00444 | M38: 0.004466521088
C39: 7. Press calculate | K39: 31 | L39: 0.00391 | M39: 0.003953784704
C40: 8. Now copy new distribution D~(Y) (in blue) into collision risk spreadsheet 'Flightheight' | K40: 32 | L40: 0.00345 | M40: 0.003498193342
K41: 33 | L41: 0.00305 | M41: 0.003090913175
K42: 34 | L42: 0.00271 | M42: 0.002733730245
K43: 35 | L43: 0.00238 | M43: 0.002419338794
K44: 36 | L44: 0.00213 | M44: 0.002134321723
K45: 37 | L45: 0.00185 | M45: 0.001885358826
K46: 38 | L46: 0.00164 | M46: 0.001662167371
K47: 39 | L47: 0.00145 | M47: 0.001466038288
K48: 40 | L48: 0.00128 | M48: 0.001297151903
K49: 41 | L49: 0.00113 | M49: 0.001152128913
K50: 42 | L50: 0.00101 | M50: 0.001026979298
K51: 43 | L51: 0.00092 | M51: 0.0009151023696
K52: 44 | L52: 0.00081 | M52: 0.0008152984083
K53: 45 | L53: 0.00071 | M53: 0.0007216332015
K54: 46 | L54: 0.00063 | M54: 0.000634029333
K55: 47 | L55: 0.00055 | M55: 0.0005566613982
K56: 48 | L56: 0.00048 | M56: 0.0004890908604
K57: 49 | L57: 0.00042 | M57: 0.0004304859613
K58: 50 | L58: 0.00038 | M58: 0.0003800852865
K59: 51 | L59: 0.00033 | M59: 0.0003378505935
K60: 52 | L60: 0.0003 | M60: 0.0002987676999
K61: 53 | L61: 0.00026 | M61: 0.0002652222756
K62: 54 | L62: 0.00023 | M62: 0.0002351797157
K63: 55 | L63: 0.00021 | M63: 0.0002075342491
K64: 56 | L64: 0.00018 | M64: 0.0001851818379
K65: 57 | L65: 0.00016 | M65: 0.0001651810016
K66: 58 | L66: 0.00015 | M66: 0.0001474514429
K67: 59 | L67: 0.00013 | M67: 0.0001326281199
K68: 60 | L68: 0.00012 | M68: 0.0001174100689
K69: 61 | L69: 0.0001 | M69: 0.0001039056224
K70: 62 | L70: 9e-05 | M70: 9.131719708e-05
K71: 63 | L71: 8e-05 | M71: 8.131793584e-05
K72: 64 | L72: 7e-05 | M72: 7.38637973e-05
K73: =K72+1 -> 65 | L73: 7e-05 | M73: 6.617555482e-05
K74: 66 | L74: 6e-05 | M74: 5.999977657e-05
K75: 67 | L75: 5e-05 | M75: 5.38641325e-05
K76: 68 | L76: 5e-05 | M76: 4.74110202e-05
K77: 69 | L77: 4e-05 | M77: =tidesmear(K77,"birddata") -> 4.26293991e-05
K78: 70 | L78: 4e-05 | M78: 3.741135515e-05
K79: 71 | L79: 3e-05 | M79: 3.390691199e-05
K80: 72 | L80: 3e-05 | M80: 3.123439819e-05
K81: 73 | L81: 3e-05 | M81: 2.876419967e-05
K82: 74 | L82: 3e-05 | M82: 2.613491051e-05
K83: 75 | L83: 2e-05 | M83: 2.386519918e-05
K84: 76 | L84: 2e-05 | M84: 2.127644439e-05
K85: 77 | L85: 2e-05 | M85: 2.004171074e-05
K86: 78 | L86: 2e-05 | M86: 1.999999949e-05
K87: 79 | L87: 2e-05 | M87: 1.999999949e-05
K88: 80 | L88: 2e-05 | M88: 1.999999949e-05
K89: 81 | L89: 2e-05 | M89: 1.999999949e-05
K90: 82 | L90: 2e-05 | M90: 1.999999949e-05
K91: 83 | L91: 2e-05 | M91: 1.999999949e-05
K92: 84 | L92: 2e-05 | M92: 1.999999949e-05
K93: 85 | L93: 2e-05 | M93: 1.999999949e-05
K94: 86 | L94: 2e-05 | M94: 1.999999949e-05
K95: 87 | L95: 2e-05 | M95: 1.999999949e-05
K96: 88 | L96: 2e-05 | M96: 1.999999949e-05
K97: 89 | L97: 2e-05 | M97: 1.999999949e-05
K98: 90 | L98: 2e-05 | M98: 1.999999949e-05
K99: 91 | L99: 2e-05 | M99: 1.999999949e-05
K100: 92 | L100: 2e-05 | M100: 1.999999949e-05
K101: 93 | L101: 2e-05 | M101: 1.999999949e-05
K102: 94 | L102: 2e-05 | M102: 1.999999949e-05
K103: 95 | L103: 2e-05 | M103: 1.999999949e-05
K104: 96 | L104: 2e-05 | M104: 1.995795537e-05
K105: 97 | L105: 2e-05 | M105: 1.87645328e-05
K106: 98 | L106: 2e-05 | M106: 1.741242158e-05
K107: 99 | L107: 1e-05 | M107: 1.773028816e-05
K108: 100 | L108: 2e-05 | M108: 1.74112447e-05
K109: 101 | L109: 2e-05 | M109: 1.876526585e-05
K110: 102 | L110: 2e-05 | M110: 1.991624413e-05
K111: 103 | L111: 2e-05 | M111: 1.872248868e-05
K112: 104 | L112: 2e-05 | M112: 1.617695489e-05
K113: 105 | L113: 1e-05 | M113: 1.514271116e-05
K114: 106 | L114: 1e-05 | M114: 1.514153337e-05
K115: 107 | L115: 2e-05 | M115: 1.617651105e-05
K116: 108 | L116: 2e-05 | M116: 1.87235546e-05
K117: 109 | L117: 2e-05 | M117: 1.995828825e-05
K118: 110 | L118: 2e-05 | M118: 1.995795537e-05
K119: 111 | L119: 2e-05 | M119: 1.872248868e-05
K120: 112 | L120: 2e-05 | M120: 1.613491077e-05
K121: 113 | L121: 1e-05 | M121: 1.386519943e-05
K122: 114 | L122: 1e-05 | M122: 1.127644464e-05
K123: 115 | L123: 1e-05 | M123: 1.004171099e-05
K124: 116 | L124: 1e-05 | M124: 9.999999747e-06
K125: 117 | L125: 1e-05 | M125: 9.999999747e-06
K126: 118 | L126: 1e-05 | M126: 9.999999747e-06
K127: 119 | L127: 1e-05 | M127: 9.999999747e-06
K128: 120 | L128: 1e-05 | M128: 9.999999747e-06
K129: 121 | L129: 1e-05 | M129: 9.999999747e-06
K130: 122 | L130: 1e-05 | M130: 9.999999747e-06
K131: 123 | L131: 1e-05 | M131: 9.999999747e-06
K132: 124 | L132: 1e-05 | M132: 9.999999747e-06
K133: 125 | L133: 1e-05 | M133: 9.999999747e-06
K134: 126 | L134: 1e-05 | M134: 9.999999747e-06
K135: 127 | L135: 1e-05 | M135: 9.999999747e-06
K136: 128 | L136: 1e-05 | M136: 9.999999747e-06
K137: =K136+1 -> 129 | L137: 1e-05 | M137: 9.999999747e-06
K138: 130 | L138: 1e-05 | M138: 9.999999747e-06
K139: 131 | L139: 1e-05 | M139: 9.999999747e-06
K140: 132 | L140: 1e-05 | M140: 9.999999747e-06
K141: 133 | L141: 1e-05 | M141: =tidesmear(K141,"birddata") -> 9.999999747e-06
K142: 134 | L142: 1e-05 | M142: 9.999999747e-06
K143: 135 | L143: 1e-05 | M143: 9.999999747e-06
K144: 136 | L144: 1e-05 | M144: 9.999999747e-06
K145: 137 | L145: 1e-05 | M145: 9.957953807e-06
K146: 138 | L146: 1e-05 | M146: 8.722487109e-06
K147: 139 | L147: 1e-05 | M147: 6.134912383e-06
K148: 140 | L148: 0 | M148: 3.865198778e-06
K149: 141 | L149: 0 | M149: 1.276446483e-06
K150: 142 | L150: 0 | M150: 4.171247525e-08
K151: 143 | L151: 0 | M151: 0
K152: 144 | L152: 0 | M152: 0
K153: 145 | L153: 0 | M153: 0
K154: 146 | L154: 0 | M154: 0
K155: 147 | L155: 0
K156: 148 | L156: 0
K157: 149 | L157: 0
K158: 150 | L158: 0
K159: 151 | L159: 0
K160: 152 | L160: 0
K161: 153 | L161: 0
K162: 154 | L162: 0
K163: 155 | L163: 0
